bitfinex/quotes_SOLUSD_20260305
["timestamp","ask_amount","ask_price","bid_price","bid_amount"]
[1772717846936,11.00750539,90.76,90.7,1.06861837]
[1772717847537,11.00750539,90.76,90.668,3.69383402]
[1772717847538,11.00750539,90.74,90.676,11.0282765]
[1772717847744,11.00750539,90.74,90.677,1.06861837]
[1772717847957,38.57216851,90.739,90.679,1.06861837]
[1772717848451,11.00750539,90.73,90.679,1.06861837]
[1772717848655,11.00750539,90.73,90.648,3.69383402]
[1772717848656,0.28432314,90.719,90.653,1.06861837]
[1772717849236,11.00750539,90.72,90.653,1.06861837]
[1772717849656,0.28432314,90.734,90.653,1.06861837]
[1772717849859,11.00750539,90.72,90.653,1.06861837]
[1772717850038,38.58067217,90.719,90.655,1.06861837]
[1772717852243,11.00750539,90.71,90.657,1.06861837]
[1772717853657,0.28432314,90.716,90.657,1.06861837]
[1772717854961,38.58237335,90.715,90.659,1.06861837]
[1772717857361,38.85819209,90.735,90.661,1.06861837]
[1772717857862,0.28432314,90.729,90.661,1.06861837]
[1772717859047,82.65829061,90.735,90.661,1.06861837]
[1772717859363,11.00750539,90.71,90.651,1.06861837]
[1772717859949,11.00750539,90.71,90.611,44.14452426]
[1772717859950,11.00750539,90.69,90.64,1.06861837]
[1772717860466,0.28432314,90.699,90.64,1.06861837]
[1772717860659,11.00750539,90.7,90.64,1.06861837]
[1772717861170,11.00750539,90.78,90.64,1.06861837]
[1772717861171,11.00750539,90.72,90.64,1.06861837]
[1772717861463,0.28432314,90.719,90.64,1.06861837]
[1772717861660,38.58109746,90.718,90.643,1.06861837]
[1772717861842,38.58109746,90.718,90.646,1.06861837]
[1772717862045,11.0231707,90.718,90.646,1.06861837]
[1772717862758,11.0231707,90.718,90.65,1.06861837]
[1772717863862,11.00750539,90.74,90.653,1.06861837]
[1772717865049,11.00750539,90.74,90.656,1.06861837]
[1772717865752,38.57216851,90.739,90.658,0.28432314]
[1772717866065,93.6752664,90.739,90.659,1.06861837]
[1772717866247,11.00750539,90.73,90.659,1.06861837]
[1772717866449,11.00750539,90.72,90.659,1.06861837]
[1772717866870,0.28432314,90.729,90.659,1.06861837]
[1772717867863,38.57641988,90.729,90.661,1.06861837]
[1772717870556,0.28432314,90.739,90.663,1.06861837]
[1772717872564,38.57259361,90.738,90.665,1.06861837]
[1772717872760,38.57259361,90.738,90.667,1.06861837]
[1772717874352,0.28432314,90.737,90.667,1.06861837]
[1772717874677,11.00012306,90.73,90.667,1.06861837]
[1772717876487,11.00012306,90.72,90.669,1.06861837]
[1772717876978,11.00012306,90.71,90.649,1.06861837]
[1772717877274,11.00012306,90.7,90.649,1.06861837]
[1772717877973,0.14216157,90.709,90.649,1.06861837]
[1772717877974,0.28432314,90.709,90.649,1.06861837]
[1772717878573,0.28432314,90.709,90.648,11.03159505]
[1772717878574,0.28432314,90.707,90.651,1.06861837]
[1772717878971,11.02438594,90.708,90.651,1.06861837]
[1772717879474,11.02438594,90.708,90.652,1.06861837]
[1772717879681,11.02438594,90.708,90.654,1.06861837]
[1772717879862,11.02438594,90.708,90.655,1.06861837]
[1772717880062,11.02438594,90.708,90.655,1.21077994]
[1772717880257,11.02329221,90.717,90.655,1.21077994]
[1772717880576,38.56876811,90.747,90.66,1.06861837]
[1772717880770,38.56876811,90.747,90.661,1.06861837]
[1772717880970,38.56876811,90.747,90.663,1.06861837]
[1772717881159,38.56876811,90.747,90.664,1.06861837]
[1772717881482,38.56876811,90.747,90.667,1.06861837]
[1772717881799,38.56876811,90.747,90.669,1.06861837]
[1772717881961,38.56876811,90.747,90.67,1.21077994]
[1772717882162,38.56876811,90.747,90.671,1.35294151]
[1772717882369,38.56876811,90.747,90.673,1.21077994]
[1772717882566,93.65462377,90.759,90.676,1.06861837]
[1772717882766,0.14216157,90.758,90.677,1.06861837]
[1772717882971,11.00012306,90.75,90.677,1.06861837]
[1772717883667,11.00012306,90.74,90.677,1.06861837]
[1772717883984,0.28432314,90.749,90.677,1.06861837]
[1772717884277,192.81834306,90.759,90.629,1.06861837]
[1772717884278,0.28432314,90.709,90.629,1.06861837]
[1772717884482,0.28432314,90.709,90.63,1.06861837]
[1772717884870,0.28432314,90.707,90.632,1.06861837]
[1772717885061,11.00012306,90.7,90.632,1.06861837]
[1772717885576,0.28432314,90.707,90.632,1.06861837]
[1772717885774,38.58535079,90.708,90.632,1.06861837]
[1772717885965,38.58535079,90.708,90.633,1.06861837]
[1772717886858,38.86499531,90.719,90.635,1.06861837]
[1772717887065,38.86499531,90.719,90.637,1.06861837]
[1772717887789,3.69383402,90.737,90.636,0.14216157]
[1772717887965,0.90571693,90.828,90.73,3.69383402]
[1772717888280,0.90571693,90.828,90.731,0.28432314]
[1772717888462,0.90571693,90.828,90.735,0.28432314]
[1772717888878,0.90571693,90.828,90.739,3.69383402]
[1772717889067,0.90571693,90.828,90.74,0.28432314]
[1772717889890,0.90571693,90.839,90.744,3.69383402]
[1772717890188,0.90571693,90.839,90.745,0.28432314]
[1772717890364,0.90571693,90.839,90.749,4.82477569]
[1772717890566,0.90571693,90.839,90.753,3.69383402]
[1772717890782,0.90571693,90.839,90.755,0.28432314]
[1772717891091,0.90571693,90.839,90.76,0.28432314]
[1772717892866,0.90571693,90.839,90.764,3.69383402]
[1772717893068,0.90571693,90.839,90.765,0.28432314]
[1772717893667,0.90571693,90.837,90.765,0.28432314]
[1772717894369,0.90571693,90.837,90.764,3.69383402]
[1772717895091,0.90571693,90.835,90.769,0.28432314]
[1772717895671,0.90571693,90.835,90.765,38.56111936]
[1772717896089,1.0478785,90.829,90.765,11.01746267]
[1772717896270,0.90571693,90.809,90.743,11.02013378]
[1772717896467,0.90571693,90.808,90.619,27.51866823]
[1772717896670,0.90571693,90.779,90.69,55.13287021]
[1772717896887,0.90571693,90.779,90.699,27.56369971]
[1772717897191,0.90571693,90.777,90.702,3.69383402]
[1772717897486,0.90571693,90.777,90.7,0.28432314]
[1772717897680,0.90571693,90.777,90.669,3.69383402]
[1772717897872,0.90571693,90.777,90.639,9.72937422]
[1772717898081,0.90571693,90.777,90.64,5.92804135]
[1772717898277,0.90571693,90.777,90.649,0.28432314]
[1772717898588,0.90571693,90.777,90.656,4.82477569]
[1772717898772,0.90571693,90.777,90.663,0.02096499]
[1772717898972,0.90571693,90.777,90.677,4.82477569]
[1772717899286,4.82477569,90.829,90.693,0.8469347]
[1772717899486,0.14216157,90.825,90.693,0.8469347]
[1772717899683,0.14216157,90.819,90.698,0.8469347]
[1772717899993,0.28432314,90.819,90.7,1.13125784]
[1772717900170,0.28432314,90.819,90.702,0.8469347]
[1772717900371,0.28432314,90.819,90.703,0.98909627]
[1772717900676,0.28432314,90.819,90.705,0.98909627]
[1772717900995,0.28432314,90.817,90.711,3.69383402]
[1772717901188,0.89471206,90.809,90.713,0.8469347]
[1772717901392,0.89471206,90.809,90.713,0.98909627]
[1772717903116,0.89471206,90.807,90.718,0.8469347]
[1772717903274,0.89471206,90.807,90.719,1.13125784]
[1772717903475,0.89471206,90.807,90.721,0.8469347]
[1772717903691,0.89471206,90.807,90.722,0.98909627]
[1772717903882,0.89471206,90.807,90.723,0.98909627]
[1772717904197,0.89471206,90.807,90.729,0.8469347]
[1772717904388,0.89471206,90.807,90.73,0.8469347]
[1772717905186,0.89471206,90.804,90.732,0.14216157]
[1772717905879,0.89471206,90.804,90.732,0.98909627]
[1772717906797,0.89471206,90.804,90.733,0.84243966]
[1772717907003,0.89471206,90.804,90.733,0.98460123]
[1772717907299,0.86640412,90.802,90.736,0.84243966]
[1772717909302,38.54583098,90.801,90.738,38.57259361]
[1772717909505,0.86640412,90.8,90.739,0.28432314]
[1772717910290,0.86640412,90.8,90.74,0.84243966]
[1772717911201,11.00897231,90.835,90.743,0.84243966]
[1772717911393,11.00897231,90.835,90.748,0.84243966]
[1772717911582,11.00897231,90.835,90.75,0.84243966]
[1772717911786,38.53140309,90.835,90.751,0.98460123]
[1772717912002,38.53140309,90.835,90.752,0.98460123]
[1772717912190,38.53140309,90.835,90.753,0.98460123]
[1772717912395,38.53140309,90.835,90.754,1.1267628]
[1772717912602,38.53140309,90.835,90.755,1.1267628]
[1772717912797,38.53140309,90.835,90.757,0.98460123]
[1772717913003,38.53140309,90.835,90.758,0.98460123]
[1772717913303,0.86640412,90.834,90.76,0.98460123]
[1772717913505,0.86640412,90.832,90.766,0.84243966]
[1772717913703,0.86640412,90.832,90.766,1.1267628]
[1772717913906,0.86640412,90.832,90.768,0.28432314]
[1772717914116,0.86640412,90.832,90.77,0.84243966]
[1772717915624,0.86640412,90.83,90.772,0.84243966]
[1772717916696,0.86640412,90.83,90.773,1.1267628]
[1772717916884,0.86640412,90.83,90.775,0.84243966]
[1772717917091,0.86640412,90.83,90.777,0.84243966]
[1772717917290,0.86640412,90.83,90.778,0.98460123]
[1772717917498,0.86640412,90.828,90.781,0.84243966]
[1772717918114,0.86640412,90.828,90.78,11.01564221]
[1772717919201,0.86640412,90.826,90.773,11.01649168]
[1772717919606,0.86640412,90.826,90.774,0.84243966]
[1772717920509,0.86640412,90.826,90.773,11.01649168]
[1772717921610,0.86640412,90.824,90.773,11.01649168]
[1772717921790,0.86640412,90.824,90.774,30.5]
[1772717922894,0.86640412,90.819,90.767,11.01721991]
[1772717923099,0.86640412,90.808,90.745,0.84243966]
[1772717923598,0.86640412,90.805,90.746,11.01976946]
[1772717923793,0.86640412,90.799,90.746,11.01976946]
[1772717923990,0.86640412,90.799,90.746,38.56919312]
[1772717924186,0.86640412,90.799,90.747,0.84243966]
[1772717925617,0.86640412,90.797,90.748,11.86196626]
[1772717926109,0.86640412,90.797,90.748,11.0195266]
[1772717926314,11.01345844,90.798,90.75,0.84243966]
[1772717926699,11.87986256,90.798,90.75,0.84243966]
[1772717926901,0.86640412,90.797,90.75,0.84243966]
[1772717927712,11.01370104,90.796,90.751,38.56706812]
[1772717927912,0.86640412,90.795,90.752,0.84243966]
[1772717930319,11.01394365,90.794,90.754,0.86391036]
[1772717930515,0.9511788,90.802,90.756,0.86391036]
[1772717930819,0.9511788,90.817,90.758,0.86391036]
[1772717930996,0.9511788,90.817,90.76,0.86391036]
[1772717933833,11.96245434,90.816,90.763,0.86391036]
[1772717933997,0.9511788,90.815,90.763,0.86391036]
[1772717935492,27.52464372,90.828,90.763,0.86391036]
[1772717935493,0.9511788,90.824,90.764,0.28432314]
[1772717935699,0.9511788,90.824,90.765,0.86391036]
[1772717935996,0.28432314,90.844,90.767,0.28432314]
[1772717935997,0.9511788,90.822,90.767,0.28432314]
[1772717936196,0.9511788,90.822,90.768,0.86391036]
[1772717936698,0.9511788,90.822,90.766,11.01734129]
[1772717937798,0.9511788,90.822,90.766,11.88125165]
[1772717938399,0.9511788,90.82,90.768,0.86391036]
[1772717939809,10.97925617,90.83,90.768,0.86391036]
[1772717939810,0.9511788,90.818,90.769,11.01697716]
[1772717941409,11.01046958,90.823,90.77,0.86391036]
[1772717941597,0.9511788,90.822,90.77,0.86391036]
[1772717941918,0.9511788,90.82,90.772,0.86391036]
[1772717942416,0.9511788,90.841,90.773,0.86391036]
[1772717942606,0.9511788,90.841,90.773,0.28432314]
[1772717942807,0.9511788,90.841,90.775,1.00607193]
[1772717943107,0.9511788,90.841,90.777,0.86391036]
[1772717943318,0.9511788,90.841,90.779,0.86391036]
[1772717943505,0.9511788,90.839,90.783,0.86391036]
[1772717943695,0.9511788,90.839,90.784,0.86391036]
[1772717943901,0.9511788,90.839,90.785,1.1482335]
[1772717944099,0.9511788,90.839,90.787,0.28432314]
[1772717944418,0.9511788,90.839,90.79,0.86391036]
[1772717945513,0.9511788,90.837,90.791,38.55007654]
[1772717946117,0.9511788,90.837,90.792,0.86391036]
[1772717946697,11.95889729,90.846,90.793,0.86391036]
[1772717946998,5.74778996,90.855,90.796,0.86391036]
[1772717946999,0.9511788,90.855,90.796,0.86391036]
[1772717947202,0.9511788,90.854,90.799,1.00607193]
[1772717947404,0.9511788,90.854,90.8,0.86391036]
[1772717947722,0.2,90.87,90.807,0.86391036]
[1772717947911,0.2,90.87,90.808,0.86391036]
[1772717948102,0.2,90.87,90.81,0.86391036]
[1772717948303,0.2,90.87,90.811,1.1482335]
[1772717948512,0.2,90.87,90.812,1.00607193]
[1772717948712,0.2,90.87,90.813,1.1482335]
[1772717948916,0.9511788,90.882,90.815,1.00607193]
[1772717949502,0.9511788,90.898,90.82,0.86391036]
[1772717949728,0.9511788,90.898,90.821,0.28432314]
[1772717949922,0.9511788,90.898,90.823,1.00607193]
[1772717950234,0.9511788,90.898,90.825,1.00607193]
[1772717950401,0.9511788,90.898,90.827,1.00607193]
[1772717950607,0.9511788,90.898,90.828,1.00607193]
[1772717950904,0.9511788,90.898,90.831,0.86391036]
[1772717951106,0.9511788,90.898,90.832,1.1482335]
[1772717951305,0.9511788,90.898,90.834,0.86391036]
[1772717951503,0.9511788,90.898,90.838,0.86391036]
[1772717951722,0.9511788,90.898,90.839,0.86391036]
[1772717951723,0.9511788,90.897,90.839,0.86391036]
[1772717953113,0.9511788,90.896,90.836,11.00885111]
[1772717953323,0.9511788,90.895,90.836,11.00885111]
[1772717953624,0.9511788,90.893,90.831,11.00945712]
[1772717954025,0.9511788,90.893,90.832,0.86391036]
[1772717955607,0.9511788,90.891,90.835,0.86391036]
[1772717955922,0.9511788,90.891,90.835,1.00607193]
[1772717956129,0.2,90.9,90.838,0.86391036]
[1772717956130,11.00156718,90.897,90.838,0.86391036]
[1772717956318,0.2,90.9,90.838,0.86391036]
[1772717956725,0.9511788,90.899,90.838,0.86391036]
[1772717957929,0.9511788,90.898,90.84,0.86391036]
[1772717959327,0.95991396,90.897,90.839,11.00848754]
[1772717959711,0.95991396,90.897,90.84,0.92060463]
[1772717960412,0.95991396,90.895,90.842,0.92060463]
[1772717961525,0.95991396,90.895,90.841,11.00824517]
[1772717961825,0.95991396,90.895,90.832,0.92060463]
[1772717962018,0.95991396,90.895,90.833,39.45285612]
[1772717962408,0.95991396,90.893,90.835,11.00897231]
[1772717962739,0.95991396,90.893,90.835,11.92957694]
[1772717962909,0.95991396,90.893,90.835,39.45200772]
[1772717963238,0.95991396,90.893,90.836,0.92060463]
[1772717963940,0.95991396,90.893,90.835,11.00897231]
[1772717964528,0.95991396,90.891,90.828,1.20492777]
[1772717964736,0.95991396,90.891,90.83,0.92060463]
[1772717965938,0.96307405,90.889,90.827,11.00994197]
[1772717966125,0.96307405,90.887,90.827,11.00994197]
[1772717966510,0.96307405,90.885,90.82,11.01079057]
[1772717967032,38.50978147,90.886,90.806,0.96973899]
[1772717967033,0.96307405,90.882,90.806,0.96973899]
[1772717967240,0.96307405,90.879,90.806,0.96973899]
[1772717967423,0.96307405,90.879,90.808,0.28432314]
[1772717967744,0.96307405,90.869,90.798,0.28432314]
[1772717968041,181.54611267,90.886,90.787,11.01479286]
[1772717968042,0.96307405,90.849,90.787,11.01479286]
[1772717968834,0.96307405,90.847,90.779,1.25406213]
[1772717969035,93.56287424,90.848,90.748,30.5]
[1772717969036,0.96307405,90.839,90.764,0.96973899]
[1772717969330,0.96307405,90.839,90.766,0.96973899]
[1772717970232,0.96307405,90.828,90.763,11.01770545]
[1772717970612,0.28432314,90.829,90.74,11.02049812]
[1772717970613,0.96307405,90.819,90.74,11.02049812]
[1772717970817,0.96307405,90.817,90.742,0.96973899]
[1772717971120,0.96307405,90.816,90.745,1.11190056]
[1772717971318,0.96307405,90.816,90.745,0.96973899]
[1772717971530,0.96307405,90.816,90.747,0.96973899]
[1772717972735,0.96307405,90.814,90.75,0.96973899]
[1772717973738,0.96307405,90.814,90.753,0.96973899]
[1772717974520,0.96307405,90.814,90.751,3.69383402]
[1772717974521,0.96307405,90.814,90.759,0.96973899]
[1772717974713,0.96307405,90.814,90.758,0.28432314]
[1772717974714,0.96307405,90.814,90.763,38.56196908]
[1772717974917,0.96307405,90.814,90.765,1.11190056]
[1772717975126,11.0116393,90.813,90.766,1.11190056]
[1772717975330,11.0116393,90.813,90.767,1.25406213]
[1772717975525,11.0116393,90.813,90.769,0.96973899]
[1772717975731,0.96307405,90.812,90.77,0.96973899]
[1772717977735,0.96307405,90.853,90.776,0.96973899]
[1772717977932,0.96307405,90.853,90.782,0.96973899]
[1772717978231,0.96307405,90.853,90.784,1.11190056]
[1772717978435,0.96307405,90.848,90.785,1.11190056]
[1772717978833,1.10523562,90.848,90.773,1.25406213]
[1772717979033,0.96307405,90.846,90.774,1.25406213]
[1772717979238,0.96307405,90.845,90.774,1.25406213]
[1772717979453,0.96307405,90.844,90.775,1.25406213]
[1772717979627,0.96307405,90.842,90.777,0.28432314]
[1772717979825,0.96307405,90.842,90.778,0.96973899]
[1772717981531,10.97925617,90.82,90.757,11.01835362]
[1772717981725,0.96307405,90.819,90.758,0.28432314]
[1772717982125,0.96307405,90.819,90.757,11.01835362]
[1772717982325,0.96307405,90.819,90.758,0.28432314]
[1772717982636,0.96307405,90.819,90.757,11.98809261]
[1772717983625,10.97925617,90.82,90.758,0.96973899]
[1772717983626,0.96307405,90.817,90.758,0.96973899]
[1772717984237,0.96307405,90.817,90.742,0.96973899]
[1772717985141,0.96307405,90.816,90.742,0.96973899]
[1772717985327,0.96307405,90.814,90.742,0.96973899]
[1772717985530,0.96307405,90.811,90.745,0.96973899]
[1772717987843,0.96307405,90.811,90.729,3.69383402]
[1772717987844,0.96307405,90.809,90.748,0.96973899]
[1772717990861,0.98247359,90.807,90.751,0.90777282]
[1772717993733,0.98247359,90.805,90.753,0.90777282]
[1772717994236,0.98247359,90.805,90.755,0.90777282]
[1772717994938,0.98247359,90.805,90.753,0.28432314]
[1772717994939,0.98247359,90.839,90.758,0.90777282]
[1772717995135,0.98247359,90.835,90.759,0.90777282]
[1772717995738,1.26679673,90.827,90.761,0.90777282]
[1772717995932,38.53437266,90.828,90.761,0.90777282]
[1772717995933,1.26679673,90.825,90.761,0.90777282]
[1772717996148,1.12463516,90.824,90.761,0.90777282]
[1772717996348,1.12463516,90.824,90.727,88.17618728]
[1772717996349,0.98247359,90.809,90.755,11.0186426]
[1772717997150,0.98247359,90.809,90.756,0.90777282]
[1772717998143,0.98247359,90.807,90.758,0.90777282]
[1772717999758,0.98247359,90.807,90.759,0.90777282]
[1772718000239,11.01248816,90.806,90.761,0.90777282]
[1772718000446,0.98247359,90.841,90.764,0.90777282]
[1772718000650,0.98247359,90.841,90.766,0.90777282]
[1772718000845,0.98247359,90.841,90.766,1.04993439]
[1772718001061,0.98247359,90.841,90.768,1.04993439]
[1772718001258,0.98247359,90.841,90.769,1.04993439]
[1772718001457,0.98247359,90.841,90.77,0.28432314]
[1772718001657,0.98247359,90.841,90.772,1.04993439]
[1772718001953,0.98247359,90.839,90.778,0.90777282]
[1772718002152,0.98247359,90.839,90.779,0.90777282]
[1772718003062,11.00791189,90.844,90.779,0.90777282]
[1772718003443,0.98247359,90.848,90.779,0.90777282]
[1772718003655,0.98247359,90.846,90.779,0.90777282]
[1772718003863,0.98247359,90.846,90.777,0.28432314]
[1772718003864,11.99023406,90.845,90.784,0.90777282]
[1772718004044,0.98247359,90.844,90.785,1.04993439]
[1772718004364,0.98247359,90.844,90.787,1.04993439]
[1772718004661,0.98247359,90.844,90.789,0.90777282]
[1772718006072,11.00800281,90.843,90.792,0.90777282]
[1772718006363,0.98247359,90.842,90.794,0.90777282]
[1772718006743,11.00756718,90.847,90.794,0.90777282]
[1772718008258,0.98247359,90.851,90.797,0.90777282]
[1772718008459,0.98247359,90.855,90.797,0.90777282]
[1772718009662,49.52,90.872,90.797,0.90777282]
[1772718009865,49.52,90.872,90.8,0.90777282]
[1772718010066,49.52,90.872,90.805,0.90777282]
[1772718010266,49.52,90.872,90.81,0.28432314]
[1772718010450,0.98247359,90.871,90.811,0.90777282]
[1772718012260,0.98247359,90.869,90.817,0.90777282]
[1772718012461,0.98247359,90.869,90.818,0.90777282]
[1772718014648,0.98247359,90.867,90.821,0.90777282]
[1772718016852,11.00521647,90.866,90.821,0.90777282]
[1772718017059,0.98247359,90.865,90.824,0.90777282]
[1772718019962,1.00665773,90.863,90.826,0.28432314]
[1772718020369,1.00665773,90.863,90.827,0.93889723]
[1772718020975,1.00665773,90.863,90.828,30.5]
[1772718021179,1.00665773,90.863,90.829,0.93889723]
[1772718021870,11.00498594,90.868,90.829,0.93889723]
[1772718022072,49.52,90.872,90.831,0.93889723]
[1772718022283,49.52,90.872,90.832,0.93889723]
[1772718022456,49.52,90.872,90.835,0.93889723]
[1772718022954,1.00665773,90.878,90.821,11.01066933]
[1772718023150,5.11473922,90.87,90.797,0.93889723]
[1772718023360,170.5564745,90.879,90.734,44.08485289]
[1772718023361,1.00665773,90.839,90.763,1.95136059]
[1772718023568,1.00665773,90.839,90.764,11.95648129]
[1772718023569,1.00665773,90.834,90.764,11.95648129]
[1772718023777,1.00665773,90.834,90.764,39.50044145]
[1772718023965,1.00665773,90.834,90.765,0.14216157]
[1772718024164,1.00665773,90.832,90.768,0.93889723]
[1772718024366,1.1488193,90.829,90.763,1.95136059]
[1772718024566,1.1488193,90.829,90.766,11.01723886]
[1772718024759,1.00665773,90.829,90.768,0.93889723]
[1772718025697,1.00665773,90.829,90.771,0.93889723]
[1772718026570,0.93746911,90.828,90.776,1.07734074]
[1772718026777,0.93746911,90.828,90.777,0.28432314]
[1772718026975,0.93746911,90.828,90.778,0.93517917]
[1772718028667,0.93746911,90.826,90.78,0.93517917]
[1772718030163,0.93746911,90.844,90.784,3.69383402]
[1772718030379,0.93746911,90.844,90.787,0.93517917]
[1772718030673,10.9711583,90.89,90.82,0.93517917]
[1772718031081,0.28432314,90.889,90.82,0.93517917]
[1772718031377,10.9711583,90.87,90.81,11.01200308]
[1772718031679,10.9711583,90.86,90.81,11.01200308]
[1772718031863,0.28432314,90.869,90.81,11.01200308]
[1772718032582,0.93746911,90.865,90.801,0.93517917]
[1772718033076,0.93746911,90.858,90.794,11.01382663]
[1772718033380,0.93746911,90.849,90.794,11.01382663]
[1772718033574,0.93746911,90.849,90.794,11.9490058]
[1772718033775,0.93746911,90.849,90.795,0.93517917]
[1772718034681,0.93746911,90.847,90.797,0.93517917]
[1772718035665,0.93746911,90.845,90.799,0.93517917]
[1772718036378,11.00391773,90.877,90.803,1.21950231]
[1772718036562,11.00391773,90.877,90.804,1.07734074]
[1772718036765,11.00391773,90.877,90.806,1.07734074]
[1772718037078,0.93746911,90.876,90.808,1.21950231]
[1772718037265,0.93746911,90.876,90.81,1.07734074]
[1772718037465,0.93746911,90.876,90.811,1.07734074]
[1772718037686,0.93746911,90.874,90.816,0.93517917]
[1772718037889,0.93746911,90.874,90.817,1.21950231]
[1772718038186,0.93746911,90.874,90.818,0.93517917]
[1772718039678,11.1711583,90.9,90.805,0.93517917]
[1772718039679,0.93746911,90.872,90.805,0.93517917]
[1772718039882,0.93746911,90.871,90.805,0.93517917]
[1772718040187,0.28432314,90.868,90.805,0.93517917]
[1772718040361,0.93746911,90.859,90.805,0.93517917]
[1772718040564,0.93746911,90.849,90.781,11.01551049]
[1772718040762,0.93746911,90.838,90.778,11.01581747]
[1772718040983,0.93746911,90.836,90.778,11.01581747]
[1772718041183,0.93746911,90.835,90.778,11.01581747]
[1772718041374,0.93746911,90.833,90.779,0.93517917]
[1772718041576,1.22179225,90.832,90.779,0.93517917]
[1772718041766,3.69383402,90.847,90.778,38.55552973]
[1772718041767,0.93746911,90.829,90.781,0.93517917]
[1772718041965,0.93746911,90.829,90.774,11.01636862]
[1772718042164,0.93746911,90.829,90.775,0.93517917]
[1772718042769,0.93746911,90.829,90.777,0.93517917]
[1772718042964,0.93746911,90.829,90.778,0.93517917]
[1772718044172,0.93746911,90.827,90.78,0.93517917]
[1772718044694,11.00921792,90.833,90.781,0.28432314]
[1772718044870,11.00921792,90.833,90.783,0.93517917]
[1772718045187,11.94668703,90.833,90.785,1.07734074]
[1772718045369,11.94668703,90.833,90.786,1.07734074]
[1772718045565,0.93746911,90.832,90.787,1.21950231]
[1772718045785,0.93746911,90.832,90.788,0.93517917]
[1772718046371,0.93746911,90.83,90.79,0.93517917]
[1772718046571,11.00945712,90.831,90.79,0.93517917]
[1772718047068,0.93746911,90.83,90.79,0.93517917]
[1772718047268,0.93746911,90.83,90.789,11.01455022]
[1772718047774,0.93746911,90.83,90.79,0.93517917]
[1772718048172,11.00945712,90.831,90.79,0.93517917]
[1772718048396,0.93746911,90.83,90.792,0.93517917]
[1772718048695,0.93746911,90.858,90.792,0.93517917]
[1772718050396,0.94006379,90.849,90.792,0.93517917]
[1772718050974,0.94006379,90.847,90.793,11.01406496]
[1772718051479,0.94006379,90.847,90.793,38.54922736]
[1772718052008,0.94006379,90.847,90.794,0.93517507]
[1772718053884,0.94006379,90.845,90.796,0.93517507]
[1772718056693,0.94006379,90.843,90.798,0.93517507]
[1772718057299,11.00737258,90.849,90.8,0.93517507]
[1772718057494,11.00737258,90.849,90.802,0.93517507]
[1772718057495,0.94006379,90.848,90.802,0.93517507]
[1772718057674,0.94006379,90.848,90.804,1.07733664]
[1772718057879,0.94006379,90.848,90.806,0.93517507]
[1772718058079,0.94006379,90.848,90.807,0.28432314]
[1772718058280,0.94006379,90.848,90.808,0.93517507]
[1772718058480,11.94746076,90.848,90.808,0.93517507]
[1772718058802,11.94746076,90.848,90.81,0.93517507]
[1772718058803,0.94006379,90.847,90.81,0.93517507]
[1772718059587,10.86656822,90.87,90.811,0.93517507]
[1772718059588,0.94006379,90.865,90.811,0.93517507]
[1772718059796,0.94006379,90.865,90.814,0.93517507]
[1772718059975,0.94006379,90.865,90.815,1.07733664]
[1772718060179,0.94006379,90.865,90.816,1.07733664]
[1772718060401,0.94006379,90.865,90.817,0.28432314]
[1772718060584,0.94006379,90.865,90.818,0.93517507]
[1772718060975,0.94006379,90.862,90.804,0.93517507]
[1772718061204,0.94006379,90.859,90.805,11.01260943]
[1772718061581,0.94006379,90.859,90.805,11.9477845]
[1772718061802,0.94006379,90.859,90.806,0.93517507]
[1772718062111,11.00538148,90.865,90.809,0.93517507]
[1772718062274,0.94006379,90.864,90.81,1.21949821]
[1772718062481,0.94006379,90.864,90.805,38.54413302]
[1772718062482,0.94006379,90.864,90.811,0.93517507]
[1772718062675,0.94006379,90.859,90.811,0.93517507]
[1772718063101,0.94006379,90.857,90.812,0.93517507]
[1772718065120,11.00642775,90.856,90.816,0.93517507]
[1772718065592,5.74702031,90.87,90.816,0.93517507]
[1772718065593,0.94006379,90.863,90.816,0.93517507]
[1772718066506,11.0054587,90.864,90.816,0.93517507]
[1772718067109,11.94552249,90.864,90.816,0.93517507]
[1772718067712,11.94552249,90.864,90.815,0.28432314]
[1772718067713,11.94552249,90.864,90.818,0.93517507]
[1772718068889,11.94552249,90.864,90.82,0.93517507]
[1772718069086,0.94006379,90.873,90.821,0.93517507]
[1772718069387,0.94006379,90.873,90.823,0.93517507]
[1772718069592,11.94455362,90.872,90.827,0.93517507]
[1772718069800,0.94006379,90.871,90.828,0.93517507]
[1772718071206,0.94006379,90.869,90.83,0.93517507]
[1772718074305,11.00497424,90.868,90.832,0.93517507]
[1772718074915,11.00497424,90.868,90.834,0.93517507]
[1772718075116,11.94503803,90.868,90.834,0.93517507]
[1772718075715,0.94006379,90.867,90.835,11.00897231]
[1772718075909,0.94006379,90.867,90.836,0.93517507]
[1772718077214,0.94006379,90.887,90.836,0.93517507]
[1772718077721,0.94006379,90.887,90.838,0.93517507]
[1772718077915,0.94006379,90.885,90.84,0.93517507]
[1772718078112,11.00211958,90.892,90.841,0.93517507]
[1772718078297,0.94006379,90.893,90.842,0.93517507]
[1772718078502,0.94006379,90.893,90.843,0.28432314]
[1772718078698,0.94006379,90.893,90.844,1.07733664]
[1772718078904,0.94006379,90.893,90.845,0.28432314]
[1772718079104,0.94006379,90.893,90.847,1.08491225]